bitfinex/quotes_ETHUSD_20251128
["timestamp","ask_amount","ask_price","bid_price","bid_amount"]
[1764360461025,0.80660064,3043.0,3042.9,4.04479618]
[1764360461635,0.80660064,3043.0,3042.9,4.0119328]
[1764360461832,0.80660064,3043.0,3042.9,4.04479618]
[1764360462825,0.80660064,3043.0,3042.9,4.0119328]
[1764360463022,0.80660064,3043.0,3042.9,4.04479618]
[1764360463226,0.30670064,3043.0,3042.9,4.04479618]
[1764360464735,0.30670064,3043.0,3042.9,4.51339618]
[1764360465065,0.30670064,3043.0,3042.9,11.23717668]
[1764360465239,0.30670064,3043.0,3042.9,11.2043133]
[1764360465830,0.30670064,3043.0,3042.9,4.8860368]
[1764360466030,0.30670064,3043.0,3042.9,4.91890018]
[1764360466754,1.28780064,3043.0,3042.9,4.45030018]
[1764360467330,0.80660064,3043.0,3042.9,4.45030018]
[1764360467664,1.28780064,3043.0,3042.9,4.45030018]
[1764360470331,1.28780064,3043.0,3042.9,8.31030018]
[1764360470528,1.28780064,3043.0,3042.9,8.2774368]
[1764360471157,1.28780064,3043.0,3042.9,4.0119328]
[1764360475583,1.28780064,3043.0,3042.4,8.91850216]
[1764360475584,1.28780064,3043.0,3042.2,6.57418972]
[1764360475755,1.21440064,3042.9,3042.3,0.208]
[1764360475945,0.30470064,3042.8,3042.3,0.93359411]
[1764360476267,0.4994,3042.4,3042.3,0.208]
[1764360476466,0.80410064,3042.4,3042.3,1.33909811]
[1764360476668,0.80410064,3042.4,3042.3,2.67122875]
[1764360477043,0.1981,3042.9,3042.4,0.405504]
[1764360477379,0.30528254,3042.8,3042.5,0.0328677]
[1764360477583,0.30528254,3042.7,3042.6,3.28666272]
[1764360478685,0.30528254,3042.7,3042.6,3.75526272]
[1764360479487,0.30528254,3042.7,3042.6,6.10239336]
[1764360479645,0.30528254,3042.7,3042.6,6.20239336]
[1764360480938,0.30528254,3042.7,3042.6,10.06239336]
[1764360484766,0.002,3043.0,3042.9,0.505504]
[1764360484943,0.002,3043.0,3042.9,7.00102526]
[1764360485147,0.002,3043.0,3042.9,8.19449441]
[1764360486548,0.002,3043.0,3042.9,5.63266933]
[1764360486852,0.002,3043.0,3042.9,5.84066933]
[1764360488363,0.002,3043.0,3042.9,9.70066933]
[1764360489172,0.002,3043.0,3042.9,10.18036933]
[1764360489350,0.002,3043.0,3042.9,10.28036933]
[1764360489551,0.002,3043.0,3042.9,9.80066933]
[1764360489746,0.4755,3043.0,3042.9,9.23206933]
[1764360490354,0.78070546,3043.0,3042.9,9.23206933]
[1764360490570,0.78068464,3043.0,3042.9,9.23206933]
[1764360490781,0.78068464,3043.0,3042.9,9.02406933]
[1764360490963,0.78068464,3043.0,3042.9,9.23206933]
[1764360491790,0.4755,3043.0,3042.9,9.23206933]
[1764360492465,0.002,3043.0,3042.9,9.23206933]
[1764360492857,0.002,3043.0,3042.9,9.33206933]
[1764360493077,0.4755,3043.0,3042.9,9.02406933]
[1764360493281,1.23405814,3043.0,3042.9,9.23206933]
[1764360495092,0.78055814,3043.0,3042.9,9.23206933]
[1764360495706,1.27155814,3043.0,3042.9,3.28633869]
[1764360495984,1.27155814,3043.0,3042.9,3.49433869]
[1764360496885,1.27155814,3043.0,3042.9,3.52720207]
[1764360499289,1.27155814,3043.0,3042.9,3.98780207]
[1764360499290,0.30705814,3043.0,3042.9,3.98780207]
[1764360500689,0.30705814,3043.0,3042.9,4.71339618]
[1764360500882,0.30705814,3043.0,3042.9,6.81093017]
[1764360501086,0.30705814,3043.0,3042.9,6.87806679]
[1764360502170,0.002,3043.0,3042.9,11.23536679]
[1764360506693,0.002,3043.0,3042.9,10.53006679]
[1764360506996,0.002,3043.0,3042.9,10.73806679]
[1764360507398,0.002,3043.0,3042.9,10.27746679]
[1764360508669,0.002,3043.0,3042.9,10.73806679]
[1764360509482,0.4744,3043.0,3042.9,9.55187268]
[1764360509682,0.4744,3043.0,3042.9,10.27746679]
[1764360510084,0.002,3043.0,3042.9,10.27746679]
[1764360510290,0.002,3043.0,3042.9,10.73806679]
[1764360511005,0.002,3043.0,3042.9,10.27746679]
[1764360511899,0.002,3043.0,3042.9,10.17746679]
[1764360511900,0.77913435,3043.0,3042.9,10.17746679]
[1764360512105,1.27013435,3043.0,3042.9,8.4854368]
[1764360512599,0.30673435,3043.0,3042.9,8.9460368]
[1764360513500,0.30673435,3043.0,3042.9,8.4854368]
[1764360513501,0.77913435,3043.0,3042.9,8.4854368]
[1764360518809,0.30673435,3043.0,3042.9,8.9632368]
[1764360519117,0.002,3043.0,3042.9,8.9632368]
[1764360519310,0.002,3043.0,3042.9,10.69425085]
[1764360520397,0.4712,3043.0,3042.9,10.21645085]
[1764360520908,0.9222,3043.0,3042.9,10.21645085]
[1764360521411,0.4712,3043.0,3042.9,10.21645085]
[1764360521615,0.002,3043.0,3042.9,10.21645085]
[1764360521818,0.002,3043.0,3042.9,10.79425085]
[1764360523304,0.002,3043.0,3042.9,10.31645085]
[1764360523612,0.4712,3043.0,3042.9,10.21645085]
[1764360524213,0.002,3043.0,3042.9,10.21645085]
[1764360525617,0.4712,3043.0,3042.9,10.21645085]
[1764360526523,0.002,3043.0,3042.9,10.21645085]
[1764360529893,0.30710555,3043.0,3042.9,10.31645085]
[1764360535234,1.22730555,3043.0,3042.9,10.31645085]
[1764360535932,1.22730555,3043.0,3042.9,8.4854368]
[1764360536231,1.22730555,3043.0,3042.9,8.0799328]
[1764360538808,0.77630555,3043.0,3042.9,8.0799328]
[1764360539209,1.22730555,3043.0,3042.9,8.0799328]
[1764360542649,0.30710555,3043.0,3042.9,15.86362194]
[1764360544949,0.30710555,3043.0,3042.9,15.76362194]
[1764360545451,0.30710555,3043.0,3042.9,15.86362194]
[1764360549661,0.30710555,3043.0,3042.9,16.35822194]
[1764360549825,0.30710555,3043.0,3042.9,21.31769237]
[1764360550025,0.002,3043.0,3042.9,16.35822194]
[1764360551520,0.002,3043.0,3042.9,21.31769237]
[1764360551737,0.002,3043.0,3042.9,21.41769237]
[1764360551931,0.002,3043.0,3042.9,21.90369237]
[1764360554453,0.002,3043.7,3043.4,0.405504]
[1764360554656,0.002,3043.7,3043.6,6.74566854]
[1764360554957,0.002,3043.7,3043.6,13.47440191]
[1764360555546,0.002,3043.7,3043.6,17.33440191]
[1764360556639,0.002,3043.7,3043.6,21.10518477]
[1764360556827,0.002,3043.7,3043.6,16.04571434]
[1764360558457,0.002,3043.7,3043.6,21.10518477]
[1764360559823,1e-08,3044.0,3043.7,1.13109811]
[1764360560022,1e-08,3044.0,3043.9,6.78166854]
[1764360560237,1e-08,3044.0,3043.9,6.98966854]
[1764360560438,1e-08,3044.0,3043.9,7.57784986]
[1764360562159,1e-08,3044.0,3043.9,10.8631089]
[1764360562360,1e-08,3044.0,3043.9,11.21262528]
[1764360563557,1e-08,3044.0,3043.9,10.75602528]
[1764360565062,1e-08,3044.0,3043.9,11.21262528]
[1764360570064,1e-08,3044.0,3043.9,10.75602528]
[1764360570443,1e-08,3044.0,3043.9,14.61602528]
[1764360571951,0.49990001,3044.0,3043.9,8.85745485]
[1764360572137,0.98510001,3044.0,3043.9,9.06545485]
[1764360574266,0.98510001,3044.0,3043.9,5.20545485]
[1764360574436,0.98510001,3044.0,3043.9,5.20645485]
[1764360575650,0.98510001,3044.0,3043.9,9.06645485]
[1764360577868,0.98510001,3044.0,3043.9,8.50893847]
[1764360578052,0.98510001,3044.0,3043.9,8.61693847]
[1764360579166,0.49990001,3044.0,3043.9,8.61693847]
[1764360579765,0.49990001,3044.0,3043.9,8.71693847]
[1764360580374,0.95640001,3044.0,3043.9,4.85693847]
[1764360581750,0.95640001,3044.0,3043.9,4.88979106]
[1764360583051,0.95640001,3044.0,3043.9,4.85693847]
[1764360583250,0.95640001,3044.0,3043.9,4.01185315]
[1764360583468,1.26119269,3044.0,3043.9,3.49425904]
[1764360583656,1.26119269,3044.0,3043.9,4.21985315]
[1764360586370,1.26119269,3044.0,3043.9,4.01185315]
[1764360587072,1.26119269,3044.0,3043.9,3.28625904]
[1764360590852,1.2608988,3044.0,3043.9,3.28625904]
[1764360596273,1.2608988,3044.0,3043.9,0.001]
[1764360602280,0.95640001,3044.0,3043.9,0.001]
[1764360605402,1.26108805,3044.0,3043.9,0.001]
[1764360608389,1.26108805,3044.0,3043.9,1.57918431]
[1764360608390,0.30468805,3044.0,3043.9,1.57918431]
[1764360608587,0.002,3044.1,3044.0,1.13109811]
[1764360608788,0.002,3044.1,3044.0,7.26881807]
[1764360609097,0.002,3044.1,3044.0,10.55396918]
[1764360609410,0.002,3044.1,3044.0,12.52371023]
[1764360610501,0.002,3044.1,3044.0,16.38371023]
[1764360610871,0.002,3044.7,3044.6,6.28761807]
[1764360611075,0.002,3044.7,3044.6,10.27152178]
[1764360611386,0.002,3044.7,3044.6,14.61722178]
[1764360611598,0.002,3044.7,3044.6,16.40740462]
[1764360612585,0.002,3044.7,3044.6,16.89720462]
[1764360613102,0.002,3044.7,3044.6,16.40740462]
[1764360616276,0.002,3044.7,3044.6,16.87820462]
[1764360617422,0.002,3044.7,3044.6,16.40740462]
[1764360619003,0.002,3044.7,3044.6,11.14288466]
[1764360619218,0.949,3044.7,3044.6,8.35579782]
[1764360619511,0.949,3044.7,3044.6,8.48360182]
[1764360619685,0.949,3044.7,3044.6,7.35250371]
[1764360620008,0.949,3044.7,3044.6,8.07809782]
[1764360632613,0.949,3044.7,3044.6,4.21809782]
[1764360633618,0.949,3044.7,3044.6,4.25094285]
[1764360635218,1.2532613,3044.7,3044.6,4.25094285]
[1764360638013,0.3062613,3044.7,3044.6,4.72374285]
[1764360638217,0.3062613,3044.7,3044.6,5.5246778]
[1764360639291,0.3062613,3044.7,3044.6,4.72374285]
[1764360639724,0.3062613,3044.7,3044.6,4.25094285]
[1764360640754,1.2477613,3044.7,3044.6,4.21809782]
[1764360640898,1.2477613,3044.7,3044.6,4.01009782]
[1764360641099,1.2477613,3044.7,3044.6,4.21809782]
[1764360642729,1.2477613,3044.7,3044.6,4.01009782]
[1764360642931,1.2477613,3044.7,3044.6,4.21809782]
[1764360644233,1.2477613,3044.7,3044.6,3.49250371]
[1764360648448,1.2477613,3044.7,3044.4,3.28569045]
[1764360648605,0.4762,3044.5,3044.4,4.01128456]
[1764360648812,0.7804613,3044.5,3044.4,4.01128456]
[1764360649024,1.2457613,3044.5,3044.4,4.01128456]
[1764360656013,0.7804613,3044.5,3044.4,4.04413175]
[1764360656536,0.7804613,3044.5,3044.4,4.01128456]
[1764360656839,0.3042613,3044.5,3044.4,4.48408456]
[1764360657039,0.3042613,3044.5,3044.4,6.07327767]
[1764360657212,0.002,3044.7,3044.5,1.13109811]
[1764360657412,0.002,3044.7,3044.6,0.978304]
[1764360657612,0.3069845,3044.7,3044.6,1.435904]
[1764360657837,0.3069845,3044.7,3044.6,3.65870982]
[1764360658136,0.3069845,3044.7,3044.6,6.94321353]
[1764360658836,0.3069845,3044.7,3044.6,6.48561353]
[1764360659031,0.3069845,3044.7,3044.6,6.94321353]
[1764360660543,0.3069845,3044.7,3044.6,6.48561353]
[1764360660841,0.002,3044.7,3044.6,6.94321353]
[1764360661051,0.002,3044.7,3044.6,7.25019803]
[1764360662222,0.002,3044.7,3044.6,6.69259803]
[1764360662909,0.002,3044.7,3044.6,7.25019803]
[1764360663115,0.002,3044.7,3044.6,6.79259803]
[1764360666054,0.002,3044.7,3044.6,7.28689803]
[1764360667263,0.464,3044.7,3044.6,6.21979803]
[1764360667468,1.24879925,3044.7,3044.4,0.001]
[1764360667667,0.4601,3044.5,3044.4,0.001]
[1764360667834,0.76489925,3044.5,3044.4,0.93459411]
[1764360668034,1.24489925,3044.5,3044.4,0.93459411]
[1764360668683,1.24489925,3044.5,3044.4,0.209]
[1764360668844,1.24489925,3044.5,3044.4,0.001]
[1764360669440,1.24489925,3044.5,3044.4,3.28571948]
[1764360669659,1.24489925,3044.5,3044.4,0.001]
[1764360670583,6.29701624,3044.5,3044.4,0.001]
[1764360670823,6.92691786,3044.5,3044.4,0.001]
[1764360671863,1.87480087,3044.5,3044.4,0.001]
[1764360682070,6.92691786,3044.5,3044.4,0.001]
[1764360682786,6.92614608,3044.5,3044.4,0.001]
[1764360684599,1.87402909,3044.5,3044.4,0.001]
[1764360684800,1.90687751,3044.5,3044.4,0.001]
[1764360685496,1.87402909,3044.5,3044.4,0.001]
[1764360685699,1.24412747,3044.5,3044.4,0.001]
[1764360689803,0.76412747,3044.5,3044.4,0.001]
[1764360690002,1.21942747,3044.5,3044.4,0.001]
[1764360690177,0.76412747,3044.5,3044.4,0.001]
[1764360690378,0.30402747,3044.5,3044.4,0.4664]
[1764360690583,0.30402747,3044.5,3044.4,0.9527]
[1764360691403,0.30402747,3044.5,3044.4,4.23741948]
[1764360691604,0.30402747,3044.5,3044.4,4.05874333]
[1764360692306,0.30402747,3044.5,3044.4,10.00154144]
[1764360692504,0.002,3044.7,3044.5,1.13109811]
[1764360692704,0.002,3044.7,3044.6,0.4654]
[1764360692908,0.002,3044.7,3044.6,12.32354119]
[1764360693809,0.002,3044.7,3044.6,15.6080449]
[1764360693982,0.002,3044.7,3044.6,11.8480449]
[1764360694617,0.002,3045.1,3044.9,0.405504]
[1764360694815,0.002,3045.1,3045.0,6.71732099]
[1764360694981,0.002,3045.1,3045.0,7.38905309]
[1764360695183,0.002,3045.1,3045.0,8.1146472]
[1764360696495,0.002,3045.1,3045.0,11.39871944]
[1764360699813,0.002,3045.1,3045.0,15.15871944]
[1764360700397,0.002,3045.1,3045.0,9.62030245]
[1764360701399,0.002,3045.1,3045.0,10.11530245]
[1764360702108,0.002,3045.1,3045.0,9.62030245]
[1764360703028,0.002,3045.1,3045.0,9.00679845]
[1764360703206,0.4832,3045.1,3045.0,8.74939845]
[1764360703513,0.002,3045.1,3045.0,8.74939845]
[1764360705114,0.002,3045.1,3045.0,14.25331544]
[1764360705792,0.002,3045.1,3045.0,14.74831544]
[1764360706509,0.002,3045.1,3045.0,15.15381944]
[1764360709921,0.002,3045.1,3045.0,15.25381944]
[1764360714007,0.002,3045.1,3045.0,15.15381944]
[1764360717737,0.002,3045.1,3045.0,15.25381944]
[1764360717904,0.002,3045.1,3045.0,15.15381944]
[1764360720639,0.002,3045.1,3045.0,15.25170867]
[1764360721524,0.002,3045.1,3045.0,15.15170867]
[1764360721906,0.002,3045.1,3045.0,15.25170867]
[1764360722122,0.30731149,3045.1,3045.0,15.15170867]
[1764360722706,0.30731149,3045.1,3045.0,14.65670867]
[1764360724007,0.30731149,3045.1,3045.0,14.20490867]
[1764360724812,0.78851149,3045.1,3045.0,9.15490245]
[1764360725125,0.78851149,3045.1,3045.0,7.86966635]
[1764360725312,0.78851149,3045.1,3045.0,4.21766635]
[1764360725313,1.25671149,3045.1,3045.0,4.21766635]
[1764360727934,1.13109811,3046.8,3045.1,0.72559411]
[1764360728123,0.2714,3045.2,3045.1,0.72559411]
[1764360729422,0.2714,3045.2,3045.1,4.00955851]
[1764360730123,0.2741,3045.2,3045.1,4.00955851]
[1764360733044,0.2714,3045.2,3045.1,4.00955851]
[1764360733212,0.2714,3045.2,3045.1,4.75982159]
[1764360735345,0.0047,3045.5,3045.1,11.32775039]
[1764360735519,0.0047,3045.5,3045.1,10.57748731]
[1764360736047,0.2688,3045.2,3045.1,4.00955851]
[1764360737738,0.2688,3045.2,3045.1,7.86955851]
[1764360737942,0.002,3045.5,3045.1,14.43748731]
[1764360738246,0.2734,3045.5,3045.1,14.43748731]
[1764360738556,0.0027,3045.2,3045.1,7.86955851]
[1764360738723,0.0027,3045.2,3045.1,9.05264159]
[1764360738920,0.2734,3045.5,3045.1,15.62057039]
[1764360739120,0.2734,3045.5,3045.1,14.43748731]
[1764360739949,0.30533113,3045.4,3045.1,11.15352291]
[1764360740152,0.30533113,3045.3,3045.1,11.15352291]
[1764360740318,0.30533113,3045.2,3045.1,7.86955851]
[1764360740751,0.30533113,3045.2,3045.1,8.06375851]
[1764360740928,0.30533113,3045.2,3045.1,9.70904159]
[1764360741323,0.30533113,3045.2,3045.1,10.17724159]
[1764360745619,0.30533113,3045.2,3045.1,9.51484159]
[1764360746741,0.30533113,3045.2,3045.1,9.98304159]
[1764360747130,0.30538862,3045.2,3045.1,9.98304159]
[1764360750728,0.30808862,3045.2,3045.1,4.00955851]
[1764360750927,0.57688862,3045.2,3045.1,4.21755851]
[1764360751528,0.30808862,3045.2,3045.1,4.21755851]
[1764360753459,0.30808862,3045.2,3045.1,3.4919644]
[1764360754351,0.30808862,3045.2,3045.1,4.25039815]
[1764360754658,0.30538862,3045.2,3045.1,5.01802555]
[1764360755239,0.30538862,3045.2,3045.1,5.50762555]
[1764360756030,0.30538862,3045.2,3045.1,5.01802555]
[1764360756231,0.30538862,3045.2,3045.1,4.21755851]
[1764360756962,0.30538862,3045.2,3045.1,3.4919644]
[1764360757868,0.30538862,3045.2,3045.1,4.67035851]
[1764360758074,0.30538862,3045.2,3045.1,5.18479815]
[1764360759260,0.30538862,3045.2,3045.1,4.70319815]
[1764360759633,0.30538862,3045.2,3045.1,5.18479815]
[1764360760158,0.30538862,3045.2,3045.1,4.67035851]
[1764360761437,0.30538862,3045.2,3045.1,8.53035851]
[1764360768476,0.30538862,3045.2,3045.1,9.01195851]
[1764360768676,0.30538862,3045.2,3045.1,10.24176159]
[1764360781687,0.30538862,3045.2,3045.1,10.64726559]
[1764360782061,0.30538862,3045.2,3045.1,10.74726559]
[1764360782680,0.30538862,3045.2,3045.1,15.7968644]
[1764360783490,0.30808862,3045.2,3045.1,3.2839644]
[1764360786084,0.30538862,3045.2,3045.1,3.31680404]
[1764360789071,0.30538862,3045.2,3045.1,3.77170404]
[1764360790098,0.30538862,3045.2,3045.1,3.31680404]
[1764360791389,0.30538862,3045.2,3045.1,3.2839644]
[1764360792401,0.30538862,3045.2,3045.1,3.31680404]
[1764360792599,0.30538862,3045.2,3045.1,3.77170404]
[1764360792802,0.30538862,3045.2,3045.1,4.25000404]
[1764360792969,0.30538862,3045.2,3045.1,5.52937155]
[1764360793168,0.30538862,3045.2,3045.1,10.57897036]
[1764360793373,0.30538862,3045.2,3045.1,10.54613072]
[1764360794173,0.30538862,3045.2,3045.1,14.40613072]
[1764360802104,0.30538862,3045.2,3045.1,15.05892883]
[1764360802410,0.30538862,3045.2,3045.1,15.62462883]
[1764360806195,0.002,3045.5,3045.4,0.505504]
[1764360806515,0.30761744,3045.5,3045.4,10.23083782]
[1764360806713,0.002,3045.8,3045.7,0.1]
[1764360807009,0.002,3045.8,3045.7,7.20589692]
[1764360807384,0.002,3045.8,3045.7,7.33742027]
[1764360807607,0.002,3045.8,3045.7,8.57612218]
[1764360808395,0.002,3045.8,3045.7,15.71943964]
[1764360821206,0.002,3046.1,3045.9,1.13109811]
[1764360821391,0.002,3046.1,3046.0,10.61903275]
[1764360821590,0.002,3046.1,3046.0,10.58620281]
[1764360821796,0.002,3046.1,3046.0,12.5744805]
[1764360823207,0.002,3046.1,3046.0,15.85747459]
[1764360824422,0.002,3046.1,3046.0,9.53477578]
[1764360824423,0.0047,3046.1,3046.0,9.53477578]
[1764360824632,0.0047,3046.1,3046.0,9.74177578]
[1764360824992,0.0047,3046.1,3046.0,8.61059609]
[1764360826813,0.002395,3046.1,3046.0,8.61059609]
[1764360826999,0.002395,3046.1,3046.0,8.60750251]
[1764360827628,9e-05,3046.1,3046.0,8.60750251]
[1764360827926,9e-05,3046.1,3046.0,8.60440893]
[1764360829227,0.2686665,3046.3,3046.1,1.13109811]
[1764360829425,0.002,3046.8,3046.1,1.13109811]
[1764360829626,0.266,3046.2,3046.1,1.13109811]
[1764360829833,0.266,3046.2,3046.1,4.98291095]
[1764360830627,0.266,3046.2,3046.1,8.26579726]
[1764360830836,0.266,3046.2,3046.1,8.53179726]
[1764360831626,0.57091906,3046.2,3046.1,8.53179726]
[1764360834231,0.57091906,3046.2,3046.1,8.12629326]
[1764360834408,0.57361906,3046.2,3046.1,7.86029326]
[1764360835960,0.57091906,3046.2,3046.1,7.86029326]
[1764360838111,0.57361906,3046.2,3046.1,7.86029326]
[1764360838843,0.57091906,3046.2,3046.1,7.86029326]
[1764360841545,0.57174098,3046.2,3046.1,7.86029326]
[1764360843337,0.30574098,3046.2,3046.1,7.86029326]
[1764360844250,0.30574098,3046.2,3046.1,8.33769326]
[1764360844839,0.30574098,3046.2,3046.1,7.86029326]
[1764360847032,0.30574098,3046.2,3046.1,10.33797537]
[1764360847230,0.30574098,3046.2,3046.1,10.62207537]
[1764360848151,0.30574098,3046.2,3046.1,9.95437537]
[1764360849959,0.30774098,3046.2,3046.1,9.95437537]
[1764360850867,0.30774098,3046.2,3046.1,10.84347937]
[1764360851022,0.30774098,3046.2,3046.1,11.15122035]
[1764360855041,0.57374098,3046.2,3046.1,10.11632035]
[1764360859364,0.57374098,3046.2,3046.1,9.71081635]
[1764360859532,0.57374098,3046.2,3046.1,8.06729326]
[1764360860531,0.002,3046.8,3046.5,0.4884]
[1764360860728,0.002,3046.8,3046.7,1.71949811]
[1764360861057,0.2557,3046.8,3046.7,1.33809811]
[1764360861238,0.2557,3046.8,3046.7,1.62919811]
[1764360861441,0.2557,3046.8,3046.7,4.91143791]
[1764360861830,0.002,3046.8,3046.7,4.91143791]
[1764360863058,0.002,3046.8,3046.7,6.2192162]
[1764360863852,0.002,3046.8,3046.7,5.7308162]
[1764360865147,0.002,3046.8,3046.7,5.76363859]
[1764360867366,0.002,3046.8,3046.7,5.47253859]
[1764360868542,0.002,3046.8,3046.7,6.54523859]
[1764360870363,0.002,3046.8,3046.7,6.83633859]
[1764360870564,0.002,3046.8,3046.7,6.8035162]
[1764360874265,0.002,3046.8,3046.7,5.7308162]
[1764360874464,0.002,3046.8,3046.7,6.1122162]
[1764360874773,0.002,3046.8,3046.7,6.3192162]
[1764360875569,0.002,3046.8,3046.7,5.720881]
[1764360875976,0.002,3046.8,3046.7,6.207881]
[1764360876578,0.002,3046.8,3046.7,5.513881]
[1764360876766,0.56311155,3046.8,3046.7,4.61040271]
[1764360878956,0.56311155,3046.8,3046.7,4.00783391]
[1764360879158,0.56311155,3046.8,3046.7,4.21483391]
[1764360880369,0.56311155,3046.8,3046.7,8.06664675]
[1764360883479,0.30681155,3046.8,3046.7,8.06664675]
[1764360888289,0.30681155,3046.8,3046.7,8.55364675]
[1764360889895,0.002,3046.8,3046.7,8.55364675]
[1764360890189,0.30733323,3046.8,3046.7,8.55364675]
[1764360890991,0.30733323,3046.8,3046.7,9.02404675]
[1764360891168,0.30733323,3046.8,3046.7,10.25488592]
[1764360892096,0.30733323,3046.8,3046.7,9.78448592]
[1764360893583,0.30733323,3046.8,3046.7,10.25488592]
[1764360893789,0.30733323,3046.8,3046.7,9.78448592]
[1764360894390,0.30733323,3046.8,3046.7,10.25488592]
[1764360894695,0.30733323,3046.8,3046.7,10.18998992]
[1764360894995,0.30733323,3046.8,3046.7,15.80810412]
[1764360895382,0.002,3046.8,3046.7,15.80810412]
[1764360895771,0.30751231,3046.8,3046.7,15.80810412]
[1764360897686,0.002,3046.8,3046.7,15.80810412]
[1764360898290,0.30746402,3046.8,3046.7,9.70298992]
[1764360898473,0.59856402,3046.8,3046.7,8.26515075]
[1764360898678,0.59856402,3046.8,3046.7,8.47215075]
[1764360899073,0.30746402,3046.8,3046.7,8.47215075]
[1764360900380,0.30746402,3046.8,3046.7,9.52955075]
[1764360902508,0.30746402,3046.8,3046.7,8.36515075]
[1764360902811,0.30746402,3046.8,3046.7,10.15484672]
[1764360903532,0.30746402,3046.8,3046.7,10.72524672]
[1764360904507,0.30746402,3046.8,3046.7,10.25484672]
[1764360904697,0.85446402,3046.8,3046.7,3.2822398]
[1764360904899,0.85446402,3046.8,3046.7,3.4892398]
[1764360906089,0.85446402,3046.8,3046.7,0.207]
[1764360906292,0.85446402,3046.8,3046.6,3.28329229]
[1764360906293,5.90030895,3046.8,3046.6,0.001]
[1764360906492,1.18949492,3046.7,3046.6,0.001]
[1764360907686,1.18932701,3046.7,3046.6,0.001]
[1764360907889,0.59929611,3046.7,3046.6,0.001]
[1764360913791,0.30819611,3046.7,3046.6,0.001]
[1764360914005,0.30529611,3046.7,3046.6,0.101]
[1764360914417,0.59639611,3046.7,3046.6,0.001]
[1764360914619,0.85269611,3046.7,3046.6,0.001]
[1764360916122,0.85269611,3046.7,3046.6,3.28334753]
[1764360916532,0.85269611,3046.7,3046.6,3.49034753]
[1764360917010,0.85269611,3046.7,3046.6,0.208]
[1764360918399,0.85269611,3046.7,3046.6,0.001]
[1764360918811,1.44275021,3046.7,3046.6,0.001]
[1764360919693,0.85269611,3046.7,3046.6,0.001]
[1764360921403,0.59639611,3046.7,3046.6,0.001]
[1764360923930,0.59839611,3046.7,3046.6,0.001]
[1764360934349,0.59839611,3046.7,3046.5,3.28245527]
[1764360934506,0.30529611,3046.6,3046.5,3.28245527]
[1764360935108,0.30529611,3046.6,3046.5,4.21405527]
[1764360935609,0.30529611,3046.6,3046.5,4.24687982]
[1764360936724,0.30529611,3046.6,3046.5,4.34687982]
[1764360936929,0.30529611,3046.6,3046.5,6.42121188]
[1764360937420,0.30529611,3046.6,3046.5,7.4521021]
[1764360937738,0.30529611,3046.6,3046.5,7.41927755]
[1764360939211,0.30529611,3046.6,3046.5,5.34494549]
[1764360939410,0.30529611,3046.6,3046.5,5.37777004]
[1764360939631,0.30529611,3046.6,3046.5,9.22958288]
[1764360939823,0.30529611,3046.6,3046.5,9.19675833]
[1764360941438,0.30529611,3046.6,3046.5,9.09675833]
[1764360941643,0.56159611,3046.6,3046.5,0.30529611]
[1764360941829,0.56159611,3046.6,3046.5,0.001]
[1764360941830,9.74163267,3046.6,3046.5,0.001]
[1764360942020,20.30766367,3046.6,3046.5,0.001]
[1764360942211,19.71795867,3046.6,3046.5,0.001]
[1764360942420,18.67026584,3046.6,3046.5,0.001]
[1764360942628,14.88091484,3046.6,3046.5,0.001]
[1764360942813,14.06122084,3046.6,3046.5,0.001]
[1764360943237,13.62166584,3046.6,3046.5,0.001]
[1764360944347,9.87518284,3046.6,3046.5,0.001]
[1764360945240,13.94054284,3046.6,3046.5,0.001]
[1764360948848,4.66599538,3046.6,3046.5,0.001]
[1764360949146,1.75399038,3046.6,3046.5,0.001]
[1764360950242,5.03633791,3046.6,3046.5,0.001]
[1764360952525,10.08218284,3046.6,3046.5,0.001]
[1764360954537,25.61841184,3046.6,3046.5,0.001]
[1764360954738,19.65532884,3046.6,3046.5,0.001]
[1764360954941,17.31992084,3046.6,3046.5,0.001]
[1764360955251,16.10514684,3046.6,3046.5,0.001]
[1764360955631,15.58195784,3046.6,3046.5,0.001]
[1764360958164,14.81977784,3046.6,3046.5,0.001]
[1764360958365,14.48867384,3046.6,3046.5,0.001]
[1764360960557,13.95227384,3046.6,3046.5,0.001]
[1764360960763,4.74433764,3046.6,3046.5,0.001]
[1764360961162,12.88905257,3046.6,3046.5,0.001]
[1764360961866,15.1267275,3046.6,3046.5,0.001]
[1764360962032,26.15078612,3046.6,3046.5,0.001]
[1764360962234,26.97638023,3046.6,3046.5,0.001]
[1764360963057,36.50602423,3046.6,3046.5,0.001]
[1764360963258,32.38166023,3046.6,3046.5,0.001]
[1764360964136,46.68850623,3046.6,3046.5,0.001]
[1764360964333,46.10928023,3046.6,3046.5,0.001]
[1764360964637,1.13109811,3046.1,3046.0,0.001]
[1764360964933,20.99808119,3046.1,3046.0,0.001]
[1764360965161,21.4203768,3046.1,3046.0,0.001]
[1764360965344,21.75105742,3046.1,3046.0,0.001]
[1764360965950,25.17593842,3046.1,3046.0,0.001]
[1764360966151,28.02181061,3046.1,3046.0,0.001]
[1764360966356,27.58703361,3046.1,3046.0,0.001]
[1764360966557,27.59417349,3046.1,3046.0,0.001]
[1764360966759,27.5942067,3046.1,3046.0,0.001]
[1764360966938,28.2179397,3046.1,3046.0,0.001]
[1764360967938,13.5276427,3046.1,3046.0,0.001]
[1764360968138,23.89345051,3046.1,3046.0,0.001]
[1764360968352,22.89345351,3046.1,3046.0,0.001]
[1764360969035,26.34412251,3046.1,3046.0,0.001]
[1764360969440,25.44471951,3046.1,3046.0,0.001]
[1764360969639,10.68177051,3046.1,3046.0,0.001]
[1764360969851,12.0782259,3046.1,3046.0,0.001]
[1764360970047,6.09686047,3046.1,3046.0,0.001]
[1764360970242,6.59456047,3046.1,3046.0,0.001]
[1764360970461,6.30386047,3046.1,3046.0,0.001]
[1764360970869,5.57826636,3046.1,3046.0,0.001]
[1764360971107,9.71892536,3046.1,3046.0,0.001]
[1764360972347,7.80128336,3046.1,3046.0,0.001]
[1764360973371,15.99679617,3046.1,3046.0,0.001]
[1764360973550,17.3437709,3046.1,3046.0,0.001]
[1764360974248,26.9858989,3046.1,3046.0,0.001]
[1764360975346,27.1864639,3046.1,3046.0,0.001]